bitfinex/quotes_BTCUSD_20250118
["timestamp","ask_amount","ask_price","bid_price","bid_amount"]
[1737176951873,0.94446306,103500.0,103490.0,0.46239156]
[1737176952055,1.05167562,103500.0,103490.0,0.36576456]
[1737176952256,0.84784506,103500.0,103490.0,0.46239156]
[1737176952624,0.84784506,103500.0,103490.0,0.70405555]
[1737176952625,0.7406325,103500.0,103490.0,0.70405555]
[1737176952817,0.26021139,103500.0,103490.0,0.85405555]
[1737176953019,0.26021139,103500.0,103490.0,0.87705555]
[1737176953220,0.18211139,103500.0,103490.0,1.05273069]
[1737176953442,0.13211139,103500.0,103490.0,1.05273069]
[1737176953619,0.05401139,103500.0,103490.0,1.05273069]
[1737176953821,0.08652693,103510.0,103500.0,0.13043188]
[1737176954006,0.08652693,103510.0,103500.0,0.37507979]
[1737176954860,0.16122395,103530.0,103520.0,0.03381388]
[1737176954861,0.10721256,103530.0,103520.0,0.03381388]
[1737176955064,0.32442869,103540.0,103520.0,0.13305469]
[1737176955221,0.21721613,103540.0,103530.0,0.09659]
[1737176955620,0.21721613,103540.0,103530.0,0.29305399]
[1737176956381,0.08742574,103540.0,103530.0,0.29305399]
[1737176956712,0.08742574,103540.0,103530.0,0.57201399]
[1737176956925,7.4e-07,103540.0,103530.0,0.76112655]
[1737176957126,0.52006121,103550.0,103540.0,0.46680418]
[1737176957329,0.52006121,103550.0,103540.0,0.61433646]
[1737176957790,0.1739535,103550.0,103540.0,0.61433646]
[1737176957994,0.00089964,103550.0,103540.0,0.61433646]
[1737176958418,6.4e-07,103550.0,103540.0,0.90354682]
[1737176958619,0.13021879,103570.0,103560.0,0.34378518]
[1737176958820,0.13021879,103570.0,103560.0,0.49131746]
[1737176959029,0.0004284,103570.0,103560.0,0.49131746]
[1737176964363,0.0004284,103570.0,103560.0,0.50099875]
[1737176968075,0.0004284,103570.0,103560.0,0.43758945]
[1737176968719,0.0004284,103570.0,103560.0,0.50099875]
[1737176969622,0.0004284,103570.0,103560.0,0.43758945]
[1737176970228,0.0004284,103570.0,103560.0,0.50099875]
[1737176970445,0.0004284,103570.0,103560.0,0.43758945]
[1737176970646,0.0004284,103570.0,103560.0,0.50099875]
[1737176970850,0.0004284,103570.0,103560.0,0.43758945]
[1737176971069,0.0004284,103570.0,103560.0,0.38929798]
[1737176971269,0.0004284,103570.0,103560.0,0.45270728]
[1737176971447,0.0004284,103570.0,103560.0,0.38929798]
[1737176971865,0.0004284,103570.0,103560.0,0.45270728]
[1737176972687,0.0004284,103570.0,103560.0,0.38929798]
[1737176973097,0.0004284,103570.0,103560.0,0.30270728]
[1737176973799,0.10764096,103570.0,103560.0,0.13037588]
[1737176974098,0.10764096,103570.0,103560.0,0.096562]
[1737176974330,0.10764096,103570.0,103560.0,0.13037588]
[1737176975160,0.10764096,103570.0,103560.0,0.096562]
[1737176976711,0.20419396,103570.0,103550.0,0.48282]
[1737176976939,0.10721256,103560.0,103550.0,0.289689]
[1737176977364,0.10721256,103560.0,103540.0,0.3863978]
[1737176977365,0.31098712,103560.0,103540.0,0.3863978]
[1737176977536,0.096562,103560.0,103550.0,0.096571]
[1737176977739,0.6088164,103570.0,103550.0,0.289711]
[1737176978291,0.289699,103560.0,103540.0,0.61602749]
[1737176978535,0.10721256,103550.0,103540.0,0.42288349]
[1737176978701,0.10721256,103550.0,103540.0,0.48629279]
[1737176979149,0.10721256,103560.0,103550.0,0.096564]
[1737176979363,0.10721256,103560.0,103550.0,0.289706]
[1737176980123,0.20377456,103560.0,103550.0,0.096564]
[1737176980924,0.10721256,103560.0,103550.0,0.096564]
[1737176981721,0.20377456,103560.0,103550.0,0.096564]
[1737176981925,0.31098712,103560.0,103550.0,0.096564]
[1737176982165,0.20377456,103560.0,103550.0,0.096564]
[1737176982593,0.173771,103550.0,103540.0,9.78e-05]
[1737176982809,0.28098356,103550.0,103540.0,9.78e-05]
[1737176985778,0.28098356,103550.0,103540.0,0.0966788]
[1737176990132,0.28098356,103550.0,103540.0,9.78e-05]
[1737176991145,0.28098356,103550.0,103540.0,0.0966788]
[1737176991276,0.28098356,103550.0,103540.0,9.78e-05]
[1737176991797,0.28098356,103550.0,103540.0,0.0966788]
[1737176996182,0.28098356,103550.0,103540.0,0.0005257]
[1737176996390,0.28188215,103550.0,103540.0,0.0971067]
[1737176997003,0.30084844,103550.0,103540.0,0.0971067]
[1737176997418,0.38686888,103550.0,103540.0,0.0971067]
[1737176998363,0.68971313,103550.0,103540.0,0.0971067]
[1737176999284,0.90603045,103550.0,103540.0,0.0971067]
[1737177000614,0.6060806,103550.0,103540.0,0.0971067]
[1737177000866,0.71329316,103550.0,103540.0,0.0971067]
[1737177001523,0.32392198,103550.0,103540.0,0.0971067]
[1737177002006,0.51973379,103550.0,103540.0,0.0005257]
[1737177002235,0.8904746,103550.0,103540.0,0.0005257]
[1737177002489,0.65347165,103550.0,103540.0,0.0005257]
[1737177002680,0.82687033,103550.0,103540.0,0.0005257]
[1737177003493,0.76422022,103550.0,103540.0,0.0005257]
[1737177003710,0.8579264,103550.0,103540.0,0.0005257]
[1737177003919,0.09659,103530.0,103520.0,0.00301741]
[1737177004186,0.28020256,103530.0,103520.0,0.09971432]
[1737177005142,0.38741512,103530.0,103520.0,0.00311532]
[1737177005386,0.48665593,103530.0,103520.0,0.00311532]
[1737177005592,0.72300371,103530.0,103520.0,0.00311532]
[1737177006018,0.76890371,103530.0,103520.0,0.00311532]
[1737177006511,0.9201859,103530.0,103520.0,0.00311532]
[1737177006789,0.85808983,103530.0,103520.0,0.00311532]
[1737177006910,1.22364265,103530.0,103520.0,0.00311532]
[1737177007108,0.34938582,103510.0,103500.0,0.000428]
[1737177007363,0.78745175,103510.0,103500.0,0.00052666]
[1737177007535,0.78745175,103510.0,103500.0,0.00535568]
[1737177007957,0.88669256,103510.0,103500.0,0.00535568]
[1737177008125,0.53643593,103510.0,103500.0,0.00535568]
[1737177008339,1.31209102,103510.0,103500.0,0.00535568]
[1737177008755,1.34868172,103510.0,103500.0,0.00535568]
[1737177008999,1.18187846,103510.0,103500.0,0.00535568]
[1737177009216,0.35043638,103510.0,103500.0,0.10197368]
[1737177009380,0.73845601,103510.0,103500.0,0.08861504]
[1737177009611,0.10721256,103510.0,103500.0,0.22704988]
[1737177009811,0.10721256,103510.0,103500.0,0.32366288]
[1737177010012,0.10721256,103510.0,103500.0,0.289849]
[1737177010270,0.20382156,103510.0,103490.0,0.65445344]
[1737177010487,0.10721256,103500.0,103490.0,0.60770021]
[1737177010878,0.10721256,103500.0,103490.0,0.41444621]
[1737177011195,0.10721256,103500.0,103490.0,0.38063233]
[1737177011502,0.10721256,103500.0,103490.0,0.41445221]
[1737177011709,0.10721256,103500.0,103490.0,0.38063833]
[1737177011906,0.10721256,103500.0,103490.0,0.28401133]
[1737177012053,0.10721256,103500.0,103490.0,0.57389033]
[1737177012453,0.10721256,103500.0,103490.0,0.38063833]
[1737177012950,0.31104312,103500.0,103490.0,0.28401133]
[1737177013158,0.20383056,103500.0,103490.0,0.28401133]
[1737177013719,0.67068188,103510.0,103490.0,0.38063833]
[1737177013930,0.86390488,103510.0,103490.0,0.38063833]
[1737177014050,0.10721256,103500.0,103490.0,0.38063833]
[1737177014250,0.12521862,103500.0,103490.0,0.28401133]
[1737177014449,0.12521862,103500.0,103490.0,0.38063833]
[1737177015098,0.01800606,103500.0,103490.0,0.41445221]
[1737177015300,0.01800606,103500.0,103490.0,0.55626151]
[1737177015875,0.71132551,103510.0,103500.0,0.096618]
[1737177016502,0.60411295,103510.0,103500.0,0.44404815]
[1737177016712,0.08630185,103510.0,103500.0,0.59810199]
[1737177018395,0.10721256,103530.0,103520.0,0.19382218]
[1737177019184,0.19351441,103530.0,103520.0,0.096599]
[1737177019487,0.19351441,103530.0,103520.0,0.13041288]
[1737177019689,0.19351441,103530.0,103510.0,0.42022488]
[1737177019943,0.20381156,103520.0,103500.0,0.67441811]
[1737177020175,0.10721256,103520.0,103510.0,0.13042288]
[1737177020427,0.20381456,103520.0,103500.0,0.54820069]
[1737177020907,0.10721256,103520.0,103510.0,0.096609]
[1737177021339,0.60411295,103520.0,103510.0,0.19383218]
[1737177022205,0.38835832,103520.0,103510.0,0.19383218]
[1737177022413,0.49557088,103520.0,103510.0,0.19383218]
[1737177022999,0.096609,103510.0,103490.0,0.79941508]
[1737177023199,0.10721256,103500.0,103490.0,0.85036442]
[1737177023434,0.10721256,103500.0,103490.0,0.70735512]
[1737177023898,0.10721256,103500.0,103490.0,0.57430043]
[1737177024119,0.10721256,103500.0,103490.0,0.60811431]
[1737177024341,0.10721256,103500.0,103490.0,0.28443943]
[1737177024549,0.10721256,103500.0,103490.0,0.38106643]
[1737177025495,0.49557088,103500.0,103490.0,0.28443943]
[1737177026871,0.38835832,103500.0,103490.0,0.38106643]
[1737177027080,0.38835832,103500.0,103490.0,0.51412112]
[1737177027295,0.38835832,103500.0,103490.0,0.57753042]
[1737177027917,0.60411295,103500.0,103490.0,0.57753042]
[1737177028665,0.60411295,103500.0,103490.0,0.58054884]
[1737177028911,0.49557088,103510.0,103500.0,0.03381388]
[1737177029144,0.49557088,103510.0,103500.0,0.13043188]
[1737177029927,0.78539788,103510.0,103490.0,0.61113373]
[1737177030144,0.10721256,103500.0,103490.0,0.61113373]
[1737177030410,0.78539788,103510.0,103490.0,0.61113373]
[1737177030619,0.97861788,103510.0,103490.0,0.41789373]
[1737177030886,0.08630185,103500.0,103490.0,0.41487531]
[1737177031352,0.19351441,103500.0,103490.0,0.38106143]
[1737177031583,0.19351441,103500.0,103490.0,0.41487531]
[1737177031847,0.41958518,103500.0,103490.0,0.28443943]
[1737177032070,0.32296718,103500.0,103490.0,0.38106643]
[1737177032316,0.21575462,103500.0,103490.0,0.47828961]
[1737177032853,0.21575462,103500.0,103490.0,0.57753042]
[1737177033094,0.21575462,103500.0,103490.0,0.65713042]
[1737177033292,0.21575462,103500.0,103490.0,0.68013042]
[1737177033737,0.21575462,103500.0,103490.0,0.83013042]
[1737177033950,0.21575462,103500.0,103490.0,0.92522189]
[1737177034156,0.38925734,103510.0,103500.0,0.21684118]
[1737177034157,0.38925733,103510.0,103500.0,0.21684118]
[1737177034357,0.38925733,103510.0,103500.0,0.31608199]
[1737177035386,0.00089901,103510.0,103500.0,0.31608199]
[1737177035960,0.00089901,103510.0,103500.0,0.54568199]
[1737177037180,0.00089901,103510.0,103500.0,0.75289455]
[1737177037407,0.00089901,103510.0,103500.0,0.82905312]
[1737177037985,0.00089901,103510.0,103500.0,0.79969455]
[1737177039556,0.00089901,103510.0,103500.0,0.80649455]
[1737177039970,0.00089901,103510.0,103500.0,0.70649455]
[1737177040183,0.00089901,103510.0,103500.0,0.80649455]
[1737177041366,0.00089901,103510.0,103500.0,0.81618469]
[1737177043228,0.00089901,103510.0,103500.0,0.60897213]
[1737177043877,0.00089901,103510.0,103500.0,0.57515825]
[1737177044086,0.00089901,103510.0,103500.0,0.60897213]
[1737177044287,0.00089901,103510.0,103500.0,0.60217213]
[1737177044722,0.00089901,103510.0,103500.0,0.53876283]
[1737177044934,0.00089901,103510.0,103500.0,0.60217213]
[1737177045346,0.00089901,103510.0,103500.0,0.53876283]
[1737177045559,0.00089901,103510.0,103500.0,0.56835825]
[1737177045784,0.00089901,103510.0,103500.0,0.57917213]
[1737177045989,0.00089901,103510.0,103500.0,0.30277213]
[1737177046633,0.00089901,103510.0,103500.0,0.13043188]
[1737177046634,0.18381157,103510.0,103500.0,0.13043188]
[1737177048322,0.39956619,103510.0,103500.0,0.13043188]
[1737177049416,0.49617519,103510.0,103500.0,0.13043188]
[1737177049586,0.39956619,103510.0,103500.0,0.13043188]
[1737177049800,0.29235363,103510.0,103500.0,0.13043188]
[1737177050584,0.46495733,103510.0,103500.0,0.13043188]
[1737177051155,0.57216989,103510.0,103500.0,0.13043188]
[1737177054115,0.46495733,103510.0,103500.0,0.13043188]
[1737177055530,0.57216989,103510.0,103500.0,0.13043188]
[1737177056962,0.57216989,103510.0,103500.0,0.13085988]
[1737177057185,0.78792452,103510.0,103500.0,0.13085988]
[1737177059616,0.88453352,103510.0,103500.0,0.000428]
[1737177060311,0.93413352,103510.0,103500.0,0.000428]
[1737177061347,0.84783167,103510.0,103500.0,0.000428]
[1737177062556,0.84019203,103510.0,103500.0,0.000428]
[1737177062754,1.06950216,103510.0,103500.0,0.000428]
[1737177063925,1.10186536,103510.0,103500.0,0.000428]
[1737177064148,0.39020412,103500.0,103490.0,0.2841798]
[1737177064352,0.70387005,103500.0,103490.0,0.2841798]
[1737177066271,1.14837819,103500.0,103490.0,0.2841798]
[1737177066449,0.5517207,103500.0,103490.0,0.41462068]
[1737177066826,0.65893326,103500.0,103490.0,0.41462068]
[1737177067260,0.5517207,103500.0,103490.0,0.41462068]
[1737177067465,0.5517207,103500.0,103490.0,0.47802998]
[1737177067662,0.60557746,103500.0,103490.0,0.47802998]
[1737177068029,0.60557746,103500.0,103490.0,0.57727079]
[1737177068621,0.08651106,103500.0,103490.0,0.57727079]
[1737177069626,0.79108903,103510.0,103500.0,0.096618]
[1737177069816,0.88769803,103510.0,103500.0,0.096618]
[1737177070595,0.80118697,103510.0,103500.0,0.096618]
[1737177070752,0.80118697,103510.0,103490.0,0.67126498]
[1737177070962,0.10721256,103500.0,103490.0,0.67126498]
[1737177071373,0.19371394,103500.0,103490.0,0.67126498]
[1737177072470,0.19371394,103500.0,103490.0,0.60785568]
[1737177073113,0.19371394,103500.0,103490.0,0.67126498]
[1737177075689,0.08650138,103500.0,103490.0,0.67126498]
[1737177076143,0.19371394,103500.0,103490.0,0.67126498]
[1737177076397,0.08650138,103500.0,103490.0,0.67126498]
[1737177077694,0.21626798,103500.0,103490.0,0.67126498]
[1737177079134,0.21626798,103500.0,103490.0,0.2841798]
[1737177079135,0.42009854,103500.0,103490.0,0.2841798]
[1737177079567,0.6497111,103500.0,103490.0,0.2841798]
[1737177079777,0.96513803,103500.0,103490.0,0.2841798]
[1737177080018,0.89895191,103500.0,103490.0,0.2841798]
[1737177080195,0.96513803,103500.0,103490.0,0.2841798]
[1737177080768,0.69339735,103500.0,103490.0,0.2841798]
[1737177080972,0.69339735,103500.0,103490.0,0.3808068]
[1737177081181,0.73676264,103500.0,103490.0,0.2841798]
[1737177081582,0.58676264,103500.0,103490.0,0.2841798]
[1737177082101,0.71636787,103500.0,103490.0,0.2841798]
[1737177083089,0.84611144,103500.0,103490.0,0.2841798]
[1737177083291,1.05256481,103500.0,103490.0,0.2841798]
[1737177083490,1.15180562,103500.0,103490.0,0.2841798]
[1737177083708,1.21799174,103500.0,103490.0,0.2841798]
[1737177084288,1.36799174,103500.0,103490.0,0.2841798]
[1737177084719,1.30180562,103500.0,103490.0,0.2841798]
[1737177084929,1.30180562,103500.0,103490.0,0.16625576]
[1737177084930,1.40458244,103500.0,103490.0,0.16625576]
[1737177085139,1.07904752,103500.0,103490.0,0.16625576]
[1737177085774,0.97980671,103500.0,103490.0,0.16625576]
[1737177086002,0.97980671,103500.0,103490.0,0.15741345]
[1737177086426,0.94321601,103500.0,103490.0,0.15741345]
[1737177086644,0.179837,103480.0,103470.0,0.00089775]
[1737177086859,0.69512963,103480.0,103470.0,0.00140381]
[1737177087268,0.60888905,103480.0,103470.0,0.00140381]
[1737177087918,0.50167649,103480.0,103470.0,0.00140381]
[1737177088523,0.89106447,103480.0,103470.0,0.00140381]
[1737177088930,0.56922498,103480.0,103470.0,0.00140381]
[1737177089139,0.67643754,103480.0,103470.0,0.00140381]
[1737177089754,0.49660054,103480.0,103470.0,0.00140381]
[1737177090381,0.59323754,103480.0,103470.0,0.00140381]
[1737177090587,0.41007914,103480.0,103470.0,0.00140381]
[1737177090789,0.41007914,103480.0,103470.0,0.13186369]
[1737177091395,0.32356804,103480.0,103470.0,0.03521769]
[1737177091599,0.42020504,103480.0,103470.0,0.03521769]
[1737177091928,0.32356804,103480.0,103470.0,0.03521769]
[1737177092124,0.49662936,103480.0,103470.0,0.03521769]
[1737177092366,0.59326636,103480.0,103470.0,0.03521769]
[1737177092569,0.59326636,103480.0,103470.0,0.00140381]
[1737177093358,0.50671614,103480.0,103470.0,0.00140381]
[1737177095784,0.7230428,103480.0,103470.0,0.00140381]
[1737177097839,0.42017622,103480.0,103470.0,0.00140381]
[1737177098895,0.73967642,103480.0,103470.0,0.00140381]
[1737177099746,0.59327776,103480.0,103470.0,0.00140381]
[1737177100554,0.42017622,103480.0,103470.0,0.00140381]
[1737177103914,0.42107523,103480.0,103470.0,0.00140381]
[1737177105024,0.68066722,103480.0,103470.0,0.00140381]
[1737177106746,0.68066722,103480.0,103470.0,0.09804981]
[1737177106969,0.68066722,103480.0,103470.0,0.00140381]
[1737177107506,1.37153822,103480.0,103470.0,0.00140381]
[1737177107769,0.179846,103470.0,103460.0,0.00089775]
[1737177107967,0.55969805,103470.0,103460.0,0.00089775]
[1737177108169,0.60889805,103470.0,103460.0,0.00089775]
[1737177108578,0.54271193,103470.0,103460.0,0.00089775]
[1737177109392,0.60889805,103470.0,103460.0,0.00089775]
[1737177109578,0.99009071,103470.0,103460.0,0.00089775]
[1737177109777,1.14009071,103470.0,103460.0,0.00089775]
[1737177109931,0.20386756,103460.0,103450.0,0.00032139]
[1737177110534,0.20386756,103460.0,103440.0,0.46563819]
[1737177110734,0.10721256,103450.0,103440.0,0.27229219]
[1737177111982,0.49655564,103450.0,103440.0,0.20888289]
[1737177112309,0.49655564,103450.0,103440.0,0.13178289]
[1737177112646,0.49655564,103450.0,103440.0,0.19519219]
[1737177112853,0.49655564,103450.0,103440.0,0.13178289]
[1737177113057,0.49655564,103450.0,103440.0,0.19519219]
[1737177113299,0.49655564,103450.0,103440.0,0.16137831]
[1737177113507,0.49655564,103450.0,103440.0,0.09796901]
[1737177113660,0.49655564,103450.0,103440.0,0.16137831]
[1737177114367,0.49655564,103450.0,103440.0,0.00129901]
[1737177114603,0.59322064,103450.0,103440.0,0.00129901]
[1737177114839,0.67422064,103450.0,103440.0,0.00129901]
[1737177115051,0.57755564,103450.0,103440.0,0.00129901]
[1737177115257,0.67422064,103450.0,103440.0,0.00129901]
[1737177115662,0.89053836,103450.0,103440.0,0.00129901]
[1737177116272,0.71287336,103450.0,103440.0,0.06470831]
[1737177116858,0.71287336,103450.0,103440.0,0.00129901]
[1737177117070,0.71287336,103450.0,103440.0,0.06470831]
[1737177117400,7.31287336,103450.0,103440.0,0.06470831]
[1737177117799,7.2263578,103450.0,103440.0,0.06470831]
[1737177118004,7.09658446,103450.0,103440.0,0.06470831]
[1737177118630,7.19324946,103450.0,103440.0,0.00129901]
[1737177119035,7.09658446,103450.0,103440.0,0.06470831]
[1737177119209,7.09658446,103450.0,103440.0,0.00129901]
[1737177120282,7.32300798,103450.0,103440.0,0.00129901]
[1737177120864,7.02019528,103450.0,103440.0,0.00129901]
[1737177121998,7.11943609,103450.0,103440.0,0.00129901]
[1737177122492,7.26943609,103450.0,103440.0,0.00129901]
[1737177123118,7.31274869,103450.0,103440.0,0.00129901]
[1737177125184,0.71274869,103450.0,103440.0,0.00129901]
[1737177125426,0.81996125,103450.0,103440.0,0.00129901]
[1737177125628,0.290028,103440.0,103420.0,0.25951995]
[1737177125833,0.10721256,103430.0,103420.0,0.12901907]
[1737177126013,0.20389556,103430.0,103420.0,0.00391907]
[1737177126394,0.10721256,103430.0,103420.0,0.00391907]
[1737177126596,0.10721256,103430.0,103420.0,0.06732837]
[1737177126794,0.20440126,103430.0,103420.0,0.00089901]
[1737177127692,0.42080599,103430.0,103420.0,0.00089901]
[1737177129905,0.46408694,103430.0,103420.0,0.00089901]
[1737177131040,0.78356794,103430.0,103420.0,0.00089901]
[1737177131396,0.79336008,103430.0,103420.0,0.00089901]
[1737177132022,0.47387908,103430.0,103420.0,0.00089901]
[1737177132650,0.10721256,103420.0,103410.0,0.31716544]
[1737177133089,0.10721256,103420.0,103410.0,0.31216544]
[1737177133695,0.10721256,103420.0,103410.0,0.21546344]
[1737177134183,0.49648364,103420.0,103410.0,0.21546344]
[1737177136044,0.49648364,103420.0,103410.0,0.15205414]
[1737177136196,0.49648364,103420.0,103410.0,0.21546344]
[1737177137539,0.49648364,103420.0,103410.0,0.2184835]
[1737177138495,0.49648364,103420.0,103410.0,0.12126032]
[1737177138719,0.59317664,103420.0,103410.0,0.06642936]
[1737177138981,0.59317664,103420.0,103410.0,0.00288616]
[1737177139189,0.59317664,103420.0,103410.0,0.00331456]
[1737177139400,0.59407628,103420.0,103410.0,0.00331456]
[1737177140618,0.810338,103420.0,103410.0,0.00331456]
[1737177140843,0.810338,103420.0,103410.0,0.0004284]
[1737177141458,0.59407628,103420.0,103410.0,0.0004284]
[1737177142846,0.810338,103420.0,103410.0,0.0004284]
[1737177145790,0.72383332,103420.0,103410.0,0.0004284]
[1737177148120,1.13420648,103420.0,103410.0,0.0004284]
[1737177148345,1.18350648,103420.0,103410.0,0.0004284]
[1737177149051,1.08072966,103420.0,103410.0,0.0004284]
[1737177149289,0.10277682,103410.0,103400.0,0.000828]
[1737177149495,0.57715863,103410.0,103400.0,0.000828]
[1737177149717,0.57715863,103410.0,103380.0,0.00532248]
[1737177149718,0.177621,103390.0,103380.0,0.00532248]
[1737177149926,0.64128693,103390.0,103380.0,0.00532248]
[1737177150126,0.64128693,103390.0,103380.0,0.0004883]
[1737177150534,0.78916375,103390.0,103380.0,0.0004883]
[1737177150930,0.72348302,103390.0,103380.0,0.0004883]
[1737177151134,0.88890995,103390.0,103380.0,0.0004883]
[1737177151512,0.75307844,103390.0,103380.0,0.0004883]
[1737177151724,1.52868921,103390.0,103380.0,0.0004883]
[1737177152077,1.42591239,103390.0,103380.0,0.0004883]
[1737177152263,0.246739,103370.0,103360.0,0.00385057]
[1737177152467,0.53479237,103370.0,103360.0,0.00385057]
[1737177152894,0.60097849,103370.0,103360.0,0.00385057]
[1737177153108,0.60097849,103370.0,103360.0,0.0008283]
[1737177153319,0.43555156,103370.0,103360.0,0.0008283]
[1737177153497,0.35395156,103370.0,103360.0,0.0008283]
[1737177154099,0.51662421,103370.0,103360.0,0.0008283]
[1737177154323,0.86039014,103370.0,103360.0,0.0008283]
[1737177154536,0.9676027,103370.0,103360.0,0.0008283]
[1737177154721,0.95963095,103370.0,103360.0,0.0008283]
[1737177155171,0.86039014,103370.0,103360.0,0.0008283]
[1737177155379,0.60539146,103370.0,103360.0,0.0008283]
[1737177155548,1.05815696,103370.0,103360.0,0.0008283]
[1737177155749,1.20594308,103370.0,103360.0,0.0008283]
[1737177155950,1.026475,103370.0,103360.0,0.0008283]
[1737177156192,1.17878756,103370.0,103360.0,0.0008283]
[1737177156394,1.17106968,103370.0,103360.0,0.0008283]
[1737177157678,0.78216387,103370.0,103360.0,0.0008283]
[1737177158296,0.75533878,103370.0,103360.0,0.0008283]
[1737177158629,1.01475043,103370.0,103360.0,0.0008283]
[1737177159362,0.75533878,103370.0,103360.0,0.0008283]
[1737177159563,0.29628382,103360.0,103330.0,0.36639779]
[1737177159800,0.10721256,103340.0,103330.0,0.36639779]
[1737177160184,0.10721256,103340.0,103330.0,0.30298849]
[1737177160585,0.10721256,103340.0,103330.0,0.36639779]
[1737177161072,0.10771764,103340.0,103330.0,0.36639779]
[1737177161242,0.10771764,103340.0,103320.0,0.47599891]
[1737177161445,0.10721256,103330.0,103320.0,0.47599891]
[1737177161664,0.10771764,103340.0,103320.0,0.47599891]
[1737177161847,0.10771764,103340.0,103320.0,0.66957091]
[1737177162046,0.10771764,103340.0,103330.0,0.0634093]
[1737177162664,0.20448464,103340.0,103330.0,0.0634093]
[1737177162815,0.20448464,103340.0,103320.0,0.47116218]
[1737177163063,0.10721256,103330.0,103320.0,0.0836]
[1737177163288,0.10721256,103330.0,103320.0,0.18082318]
[1737177163667,0.10721256,103330.0,103320.0,0.11741388]
[1737177163874,0.20398956,103330.0,103320.0,0.27760918]
[1737177164256,0.20398956,103330.0,103320.0,0.11741388]
[1737177164656,0.10721256,103330.0,103320.0,0.27760918]
[1737177167562,0.20448964,103340.0,103330.0,0.096777]
[1737177167771,0.20448964,103340.0,103320.0,0.66473318]
[1737177167977,0.20398956,103330.0,103320.0,0.0004]
[1737177168185,0.10721256,103330.0,103320.0,0.1605953]
[1737177169786,0.10721256,103330.0,103320.0,0.097186]
[1737177170242,0.20398956,103330.0,103320.0,0.0004]
[1737177170861,0.20398956,103330.0,103320.0,0.0638093]
[1737177171107,0.20398956,103330.0,103320.0,0.0004]
[1737177171338,0.20398956,103330.0,103320.0,0.0638093]
[1737177171570,0.20398956,103330.0,103320.0,0.0004]
[1737177171816,0.28308956,103330.0,103320.0,0.0004]
[1737177172052,0.38233037,103330.0,103320.0,0.0004]
[1737177173032,0.28308956,103330.0,103320.0,0.0004]
[1737177173268,0.10721256,103330.0,103320.0,0.18274583]
[1737177173772,0.20398956,103330.0,103320.0,0.00826083]
[1737177174260,0.10721256,103330.0,103320.0,0.10504683]
[1737177174537,0.20398956,103330.0,103320.0,0.10504683]
[1737177174992,0.10721256,103330.0,103320.0,0.10504683]
[1737177175240,0.10721256,103330.0,103320.0,0.13928941]
[1737177175472,0.10811284,103330.0,103320.0,0.13928941]
[1737177176179,0.10811284,103330.0,103320.0,0.04250341]
[1737177176443,0.20488984,103330.0,103320.0,0.04250341]
[1737177176677,0.10811284,103330.0,103320.0,0.04250341]
[1737177176903,0.20488984,103330.0,103320.0,0.04250341]
[1737177177613,0.20488984,103330.0,103320.0,0.13928941]
[1737177177866,0.20488984,103330.0,103320.0,0.04250341]
[1737177178098,0.20488984,103330.0,103310.0,0.60115083]
[1737177179359,0.39844684,103330.0,103310.0,0.40755983]
[1737177180332,0.39844684,103330.0,103310.0,0.60115083]
[1737177180808,0.096786,103320.0,103310.0,0.11719183]
[1737177181016,0.59202384,103330.0,103310.0,0.21398683]
[1737177181225,0.10811284,103330.0,103310.0,0.31078083]
[1737177181434,0.00090028,103330.0,103320.0,0.18147783]
[1737177181635,0.00090028,103330.0,103320.0,0.25917783]
[1737177181847,0.00090028,103330.0,103320.0,0.53692267]
[1737177182061,0.00090028,103330.0,103320.0,0.42971011]
[1737177182237,0.00090028,103330.0,103320.0,0.57971011]
[1737177182560,0.00090028,103330.0,103320.0,0.68692267]
[1737177184400,0.00090028,103330.0,103320.0,0.57971011]
[1737177184599,0.10811284,103330.0,103320.0,0.19602681]
[1737177184822,0.00090028,103330.0,103320.0,0.096786]
[1737177185025,0.00090028,103330.0,103320.0,0.13627783]
[1737177186833,0.20488984,103330.0,103320.0,0.03949183]
[1737177187011,0.39844784,103330.0,103310.0,0.290366]
[1737177187247,0.39844784,103330.0,103310.0,0.33028663]
[1737177187481,0.20488984,103330.0,103320.0,0.13627783]
[1737177187704,0.09767728,103330.0,103320.0,0.13627783]
[1737177187912,0.09767728,103330.0,103310.0,0.2907938]
[1737177188097,0.096786,103320.0,103310.0,0.03992063]
[1737177188243,0.20399856,103320.0,103310.0,0.0004288]
[1737177188466,0.59201984,103330.0,103310.0,0.13631663]
[1737177188656,0.59201984,103330.0,103310.0,0.12131663]
[1737177188844,0.096796,103310.0,103300.0,0.13672023]
[1737177189061,0.10721256,103310.0,103300.0,0.1202284]
[1737177189259,0.10721256,103310.0,103300.0,0.13672023]
[1737177189457,0.47878856,103320.0,103300.0,0.13672023]
[1737177189671,0.67236256,103320.0,103300.0,0.13672023]
[1737177189889,0.10721256,103310.0,103300.0,0.15972023]
[1737177190091,0.47877756,103320.0,103300.0,0.55177419]
[1737177190309,0.10721256,103320.0,103310.0,0.13628783]
[1737177190890,1.27574584,103330.0,103310.0,0.13628783]
[1737177191084,0.94266056,103320.0,103300.0,0.33868647]
[1737177191339,0.84587456,103320.0,103310.0,0.096796]
[1737177191610,0.94266056,103320.0,103300.0,0.58323181]
[1737177191828,0.52298148,103320.0,103300.0,0.58323181]
[1737177192030,0.52298148,103320.0,103310.0,0.00302367]
[1737177192204,0.42619548,103320.0,103310.0,0.09981967]
[1737177192621,0.10721256,103320.0,103310.0,0.09981967]
[1737177194079,0.73888875,103330.0,103310.0,0.29340967]
[1737177194238,0.10721256,103320.0,103310.0,0.29340967]
[1737177194666,0.10721256,103320.0,103310.0,0.290386]
[1737177196070,0.36644947,103320.0,103310.0,0.096796]
[1737177196282,0.46323547,103320.0,103310.0,0.096796]
[1737177198284,0.46323547,103320.0,103300.0,0.38963681]
[1737177198489,0.10721256,103310.0,103290.0,0.193628]
[1737177198687,0.10721256,103300.0,103290.0,0.290434]
[1737177199155,0.20401756,103300.0,103290.0,0.096811]
[1737177199368,0.47880756,103310.0,103290.0,0.096811]
[1737177199590,0.73804447,103310.0,103290.0,0.484063]
[1737177199967,0.73854924,103310.0,103290.0,0.484063]
[1737177200170,0.73854924,103310.0,103290.0,0.48708704]
[1737177200708,0.73854924,103310.0,103290.0,0.29345804]
[1737177200709,0.57972517,103300.0,103290.0,0.29345804]
[1737177201758,0.25923691,103300.0,103290.0,0.29345804]
[1737177201959,0.47931233,103310.0,103290.0,0.29345804]
[1737177202221,0.47931233,103310.0,103300.0,0.096805]
[1737177202531,0.47931233,103310.0,103290.0,0.29345504]
[1737177202743,0.29208411,103300.0,103290.0,0.29345504]
[1737177203173,0.49610167,103300.0,103290.0,0.00302404]
[1737177203380,0.29208411,103300.0,103290.0,0.09983804]
[1737177204518,0.29208411,103300.0,103290.0,0.42817885]
[1737177206023,0.39076396,103300.0,103290.0,0.42817885]
[1737177207474,0.49797652,103300.0,103290.0,0.17893804]
[1737177207721,0.62823716,103300.0,103290.0,0.09983804]
[1737177207917,0.5210246,103300.0,103290.0,0.09983804]
[1737177208076,0.5210246,103300.0,103290.0,0.08951204]
[1737177208286,0.62823716,103300.0,103290.0,0.08951204]